Cogmind - Beta 13 @@@ ROGUE MODE // 2024.03.14 @ 21:11:46 // Winter2019/RPGLIKE Player: H3-RMN Result: Destroyed by G-50 Soldier with Heavy Laser Performance ------------- Evolutions (2) 1000 Regions Visited (5) 1000 Robots Destroyed (76) 380 Value Destroyed (2731) 2731 Prototype IDs (15) 300 Alien Tech Used (0) 0 Bonus (416) 416 TOTAL SCORE: 5827 Bonus ------- High Alert Combat Kills 101 Follower Combat Kills 115 Entered Garrisons 200 Cogmind --------- Core Integrity 0/600 Matter 287/300 Energy 365/365 System Corruption 0% Temperature Warm (179) Movement Walking (90) Location -8/Garrison Parts ------- > --- POWER (2) -------- Neutrino Core Micro Fission Core > --- PROPULSION (3+3) - VSS Leg (+) Arachnoskeleton > --- UTILITY (6) ------ Machine Analyzer Improved Transmission Jammer Hardened Medium Armor Plating Reactive Plating Makeshift Hacking Suite Makeshift System Shield > --- WEAPON (2) ------- Disruptor Cannon Improved Grenade Launcher > --- INVENTORY (4) ---- System Shield Advanced Trap Extractor (0/8) Improved Assault Rifle Multitool Peak State ------------ > --- POWER ------------ Neutrino Core Micro Fission Core > --- PROPULSION ------- VSS Leg Arachnoskeleton > --- UTILITY ---------- Machine Analyzer Improved Transmission Jammer Hardened Medium Armor Plating Reactive Plating Makeshift Hacking Suite Makeshift System Shield > --- WEAPON ----------- Disruptor Cannon Improved Assault Rifle > --- INVENTORY -------- Improved Terrain Scanner System Shield Improved Grenade Launcher Multitool [Rating: 69] Favorites ----------- Power Light Ion Engine Engine Light Ion Engine Power Core Light Nuclear Core Propulsion Spiked Treads Treads Spiked Treads Leg Arachnoskeleton Wheel Subdweller Monowheel Flight Unit Flight Unit Utility Improved Terrain Scanner Device Improved Terrain Scanner Processor Signal Interpreter Hackware Makeshift System Shield Protection Scrap Shield Weapon Makeshift Laser Energy Gun Makeshift Laser Energy Cannon Disruptor Cannon Ballistic Gun Assault Rifle Ballistic Cannon Battle Cannon Launcher Grenade Launcher Special Weapon Multitool Impact Weapon Makeshift Hammer Slashing Weapon Axe Build | -11 -10 -10 -10 -8 -8 ------- Run | Yrd Mat Min Sub Mat Gar Slots Evolved 9 | 3 1 . 3 2 . Power 1 | . . . 1 . . Propulsion 2 | 1 . . 1 . . Utility 5 | 1 1 . 1 2 . Weapon 1 | 1 . . . . . Parts Attached 67 | 7 7 . 29 15 9 Power 9 | 1 1 . 3 2 2 Engine 5 | 1 . . 3 1 . Core 4 | . 1 . . 1 2 Reactor . | . . . . . . Propulsion 9 | 2 2 . 4 1 . Treads 4 | 2 . . 2 . . Leg 2 | . . . 1 1 . Wheel 1 | . . . 1 . . Hover . | . . . . . . Flight 2 | . 2 . . . . Utility 13 | 2 2 . 3 5 1 Device 4 | 2 . . 1 . 1 Storage . | . . . . . . Processor 3 | . 1 . . 2 . Hackware 2 | . . . 1 1 . Protection 4 | . 1 . 1 2 . Artifact . | . . . . . . Weapon 36 | 2 2 . 19 7 6 Energy Gun 3 | . . . 2 1 . Energy Cannon 1 | . . . . . 1 Ballistic Gun 12 | 2 2 . 7 . 1 Ballistic Cannon 1 | . . . 1 . . Launcher 6 | . . . 3 1 2 Special Weapon 3 | . . . . 2 1 Impact Weapon 7 | . . . 6 . 1 Slashing Weapon 3 | . . . . 3 . Piercing Weapon . | . . . . . . Special Melee Weapon . | . . . . . . Unidentified Prototypes . | . . . . . . Parts Lost 3 | . . . 2 1 . Power . | . . . . . . Propulsion 1 | . . . 1 . . Utility 2 | . . . 1 1 . Weapon . | . . . . . . Highest Loss Streak 1 | . . . 1 1 . To Critical Strikes . | . . . . . . Average Slot Usage (%) 83 | . 99 100 81 62 74 Engine 11 | . 11 12 12 8 2 Core 1 | . 1 . . 4 9 Treads 8 | . 1 . 15 . . Leg 2 | . . . 2 6 12 Flight 7 | . 24 25 . . . Device 11 | . 18 12 11 6 6 Processor 5 | . 4 12 5 2 6 Hackware 2 | . . . 1 7 12 Protection 9 | . 7 12 9 11 12 Energy Gun 5 | . . . 9 . . Ballistic Gun 9 | . 26 25 3 . 5 Impact Weapon 4 | . . . 5 6 1 Naked Turns . | . . . . . . Heaviest Build 50 | 10 10 9 32 45 50 Greatest Support 67 | 40 40 13 55 67 67 Greatest Overweight (x) 3 | . 2 . 3 . . Average Overweight (x) . | . . . . . . Largest Inventory Capacity 4 | 2 2 2 4 4 4 Average Capacity 3 | 2 2 2 3 4 4 Most Carried 4 | . 2 2 4 4 4 Average Carried 3 | . 1 1 3 3 3 Final Capacity 4 | 2 2 2 4 4 4 Final Carried 4 | . 2 2 4 4 4 Class Distribution -------------------- 45% | Derelict-Mutant 34% | Mutant 10% | Hacker-Gladiator 5% | Hacker-Mutant Dominant Class ---------------- Mutant | -10/Materials Mutant | -10/Mines Derelict-Mutant | -10/Subcaves Hacker-Gladiator | -8/Materials Hacker-Mutant | -8/Garrison Resources | -11 -10 -10 -10 -8 -8 ----------- Run | Yrd Mat Min Sub Mat Gar Matter Collected 1856 | 301 443 126 574 200 212 Remotely . | . . . . . . Salvage Created 2422 | 130 960 176 466 487 203 Parts 140 | 6 51 6 35 35 7 Haulers Intercepted 3 | . 2 . . 1 . Recyclers Shooed . | . . . . . . Parts Field Recycled . | . . . . . . Retrieved Matter . | . . . . . . Parts Self-Destructed 18 | . . . 18 . . Prevented . | . . . . . . Kills | -11 -10 -10 -10 -8 -8 ------- Run | Yrd Mat Min Sub Mat Gar Combat Hostiles Destroyed 60 | . 16 5 22 12 5 Melee 8 | . . . 2 6 . Guns 34 | . 16 5 10 . 3 Cannons 1 | . . . 1 . . AOE 9 | . . . 4 3 2 Classes Destroyed 15 | 2 6 . 4 3 . Worker 1 | . 1 . . . . Builder 1 | . 1 . . . . Tunneler 3 | 2 . . . 1 . Hauler 3 | . 2 . . 1 . Recycler 1 | 1 . . . . . Operator 2 | . 2 . . . . Turret 2 | . . . 2 . . Watcher 3 | . 2 . . 1 . Swarmer 8 | . . . 5 3 . Grunt 31 | . 16 5 2 3 5 Sentry 3 | . . . . 3 . Specialist 2 | . . . . 2 . Hunter 1 | . . . . 1 . Artisan 1 | . . . 1 . . Subdweller 15 | . . . 15 . . Best Kill Streak 5 | 3 5 2 4 4 3 Combat Bots Only 4 | . 4 2 3 3 3 Max Kills in Single Turn 2 | 1 1 1 2 2 1 Gunslinging . | . . . . . . Exploded 2 | . . . 2 1 1 Melee 1 | . . . 1 1 . Uniques/NPCs Destroyed . | . . . . . . Combat | -11 -10 -10 -10 -8 -8 -------- Run | Yrd Mat Min Sub Mat Gar Hostile Shots Fired 339 | . 75 27 145 57 35 Missed 89 | . 23 6 41 12 7 Damage Taken 3979 | . 724 299 1728 654 574 Core 2694 | . 584 215 1192 348 355 Absorbed by Shields . | . . . . . . Redirected to Core 2226 | . 437 158 1038 295 298 Ignored by Resistances 65 | . . . . 65 . Core Remaining (%) 66 | 100 . . 32 . . Volleys Fired 213 | 9 76 21 73 3 31 Largest 2 | 2 2 2 2 1 2 Hottest 104 | 40 40 40 90 30 104 Shots Fired 366 | 18 152 42 115 3 36 Gun 328 | 18 152 42 94 . 22 Cannon 18 | . . . 9 . 9 Launcher 18 | . . . 12 3 3 Special 2 | . . . . . 2 Kinetic 295 | 18 152 42 61 . 22 Thermal 44 | . . . 42 . 2 Explosive 18 | . . . 12 3 3 Electromagnetic 9 | . . . . . 9 Robot Hit Streak 26 | 9 18 19 26 1 14 Robot Miss Streak 4 | 1 4 3 1 2 1 Penetration Max . | . . . . . . Secondary Targets 1 | . 1 . . . . Max Gunslinging Chain 1 | . 1 . . . . Shots Hit Robots 313 | 13 101 35 109 29 26 Core Hits 124 | 5 45 13 37 11 13 Critical Kills 3 | . 1 1 1 . . Critical Parts Destroyed 7 | 1 . . 5 1 . Critical Strikes 18 | 1 1 1 12 3 . Burn 4 | . . . 4 . . Destroy 4 | 1 1 1 1 . . Smash 8 | . . . 7 1 . Sever 2 | . . . . 2 . Melee Attacks 107 | . . . 51 54 2 Impact 90 | . . . 51 37 2 Slashing 17 | . . . . 17 . Piercing . | . . . . . . Sneak Attacks 2 | . . . . 2 . Combat Hostiles . | . . . . . . Follow-up Attacks 5 | . . . . 5 . Damage Inflicted 6965 | 137 1185 431 2977 1407 828 Guns 3320 | 137 1185 431 1261 . 306 Cannons 183 | . . . 129 . 54 Explosions 1186 | . . . 496 222 468 Melee 2276 | . . . 1091 1185 . Ramming . | . . . . . . Kinetic 2848 | 137 1185 431 789 . 306 Thermal 601 | . . . 601 . . Explosive 1186 | . . . 496 222 468 Electromagnetic 54 | . . . . . 54 Impact 1909 | . . . 1091 818 . Slashing 367 | . . . . 367 . Piercing . | . . . . . . Highest Corruption . | . . . . . . Average Corruption . | . . . . . . Corruption Purged . | . . . . . . Corruption Blocked . | . . . . . . Overload Shots . | . . . . . . Overflow Damage 455 | . . . 211 224 20 Projectiles . | . . . . . . Explosions 20 | . . . . . 20 Melee 435 | . . . 211 224 . Knockbacks 9 | . . . 9 . . Impact 7 | . . . 7 . . Kinetic 2 | . . . 2 . . Secondary . | . . . . . . Self-Inflicted Damage 149 | . . . 7 10 132 Shots 5 | . . . 1 1 3 Rammed . | . . . . . . Targets Rammed . | . . . . . . Kicked . | . . . . . . Crushed . | . . . . . . Highest Temperature 171 | . 26 20 5 56 171 Average Temperature 38 | . 9 8 5 18 83 Received Heat Transfer 1602 | . 378 177 507 270 270 Siege Activations . | . . . . . . Robots Corrupted . | . . . . . . Combat Hostiles . | . . . . . . Parts Fried 12 | . . . 5 7 . Impact Corruptions 16 | . . . 9 7 . Robots Melted . | . . . . . . Combat Hostiles . | . . . . . . Parts Melted . | . . . . . . Heat Transferred 1579 | . . . 1579 . . Parts Sabotaged . | . . . . . . Parts Stolen . | . . . . . . Parts Stripped . | . . . . . . Power Chain Reactions . | . . . . . . Alert | -11 -10 -10 -10 -8 -8 ------- Run | Yrd Mat Min Sub Mat Gar Peak Influence 560 | 15 560 424 . 519 300 Initial 218 | . 9 218 . 53 111 Average 272 | 5 301 286 . 294 202 Maximum Alert Level 2 | . 2 2 . 2 1 Low Security (%) 23 | 100 26 . . 28 35 Level 1 57 | . 44 97 . 35 64 Level 2 18 | . 29 2 . 36 . Level 3 . | . . . . . . Level 4 . | . . . . . . Level 5 . | . . . . . . High Security . | . . . . . . Max Security . | . . . . . . Squads Dispatched 9 | . 5 . . 4 . Investigation 4 | . 3 . . 1 . Extermination . | . . . . . . Reinforcement 4 | . 2 . . 2 . Assault . | . . . . . . Garrison 1 | . . . . 1 . Intercept . | . . . . . . Searches Triggered . | . . . . . . Construction Impeded . | . . . . . . Haulers Reinforced . | . . . . . . Active Scanning Responses . | . . . . . . Cargo Convoy Interrupts . | . . . . . . Stealth | -11 -10 -10 -10 -8 -8 --------- Run | Yrd Mat Min Sub Mat Gar Distress Signals 4 | . 2 . . 2 . Communications Jammed . | . . . . . . Distress Signals . | . . . . . . Times Spotted 113 | . 30 6 50 20 7 Peak Tracking Total 5 | . 5 2 3 5 4 Tactical Retreats 4 | . 1 1 1 1 . Traps | -11 -10 -10 -10 -8 -8 ------- Run | Yrd Mat Min Sub Mat Gar Traps Triggered 3 | . 1 . 1 . 1 Indirectly . | . . . . . . Trap Hack Attempts . | . . . . . . Triggered . | . . . . . . Disarmed . | . . . . . . Reprogrammed . | . . . . . . Reused 1 | . . . 1 . . Traps Extracted . | . . . . . . Installed 1 | . . . 1 . . Triggered . | . . . . . . Most Traps Carried 1 | . . . 1 . . Machines | -11 -10 -10 -10 -8 -8 ---------- Run | Yrd Mat Min Sub Mat Gar Machines Disabled 15 | . . 1 4 9 1 Max in Single Turn 2 | . . . 2 1 1 Garrison Relay 1 | . . . . . 1 Machines Repaired . | . . . . . . Machines Dismantled . | . . . . . . Machines Sabotaged . | . . . . . . Overloaded Fab Kills . | . . . . . . Hacking | -11 -10 -10 -10 -8 -8 --------- Run | Yrd Mat Min Sub Mat Gar Machines Accessed 20 | . 10 . 2 7 1 Terminals 12 | . 7 . . 4 1 Fabricators . | . . . . . . Repair Stations 1 | . 1 . . . . Recycling Units 3 | . 2 . . 1 . Scanalyzers 1 | . . . . 1 . Garrison Access 1 | . . . . 1 . Total Hacks 63 | . 23 . 2 35 3 Successful 34 | . 11 . 2 19 2 Failed 29 | . 12 . . 16 1 Catastrophic 6 | . 3 . . 3 . Database Lockouts . | . . . . . . Manual 22 | . 13 . . 7 2 Terminals 40 | . 18 . . 19 3 Fabricators . | . . . . . . Repair Stations 1 | . 1 . . . . Recycling Units 10 | . 4 . . 6 . Scanalyzers 9 | . . . . 9 . Garrison Access 1 | . . . . 1 . Terminal Hacks 13 | . 4 . 2 5 2 Record 1 | . . . 1 . . Part Schematic 1 | . . . . . 1 Robot Analysis 2 | . 2 . . . . Prototype ID Bank 2 | . 1 . . 1 . Emergency Access Points 1 | . . . . . 1 Alert Level 1 | . . . . 1 . Unreport Threat 2 | . . . . 2 . Locate Traps 2 | . 1 . . 1 . Derelict Proto ID Bank 1 | . . . 1 . . Fabricator Hacks . | . . . . . . Repair Station Hacks 1 | . 1 . . . . Refit 1 | . 1 . . . . Recycling Unit Hacks 4 | . 2 . . 2 . Report Inventory 3 | . 2 . . 1 . Retrieve Components 1 | . . . . 1 . Scanalyzer 7 | . . . . 7 . Insert Component 3 | . . . . 3 . Analyze 4 | . . . . 4 . Garrison Access Hacks 1 | . . . . 1 . Unlock Access 1 | . . . . 1 . Unauthorized Hacks 8 | . 4 . . 4 . Terminals 5 | . 2 . . 3 . Track 3 | . 1 . . 2 . Botnet 2 | . 1 . . 1 . Fabricators . | . . . . . . Repair Stations . | . . . . . . Recycling Units 3 | . 2 . . 1 . Mask 1 | . . . . 1 . Tunnel 2 | . 2 . . . . Scanalyzers . | . . . . . . Garrison Access . | . . . . . . Data Cores Recovered . | . . . . . . Used . | . . . . . . Hacking Detections 13 | . 9 . . 3 1 Full Trace Events 5 | . 4 . . 1 . Feedback Events . | . . . . . . Feedback Blocked . | . . . . . . Robot Schematics Acquired . | . . . . . . Robots Built . | . . . . . . Authchips . | . . . . . . Time . | . . . . . . Total Robot Build Rating . | . . . . . . Part Schematics Acquired 4 | . . . . 3 1 Parts Built . | . . . . . . Authchips . | . . . . . . Time . | . . . . . . Total Part Build Rating . | . . . . . . Parts Repaired . | . . . . . . Time . | . . . . . . Parts Recycled . | . . . . . . Recycled Matter . | . . . . . . Retrieved Matter . | . . . . . . Retrieved Components 3 | . . . . 3 . Parts Scanalyzed 3 | . . . . 3 . Part Schematics Acquired 3 | . . . . 3 . Parts Damaged . | . . . . . . Bothacking | -11 -10 -10 -10 -8 -8 ------------ Run | Yrd Mat Min Sub Mat Gar Used RIF Installer . | . . . . . . Robots Hacked . | . . . . . . Non-combat . | . . . . . . Combat . | . . . . . . Robot Hacks Applied . | . . . . . . Relay Couplers Released 1 | . . . . . 1 Machine Destruction 1 | . . . . . 1 Fabnet Peak Effective % . | . . . . . . Robots Rewired . | . . . . . . Allies Hacked . | . . . . . . Hacks Repelled . | . . . . . . Allies | -11 -10 -10 -10 -8 -8 -------- Run | Yrd Mat Min Sub Mat Gar Total Allies 2 | . . 2 . . . Largest Group 2 | . . 2 1 . . Highest-Rated Group 39 | . . 39 12 . . Highest-Rated Ally 31 | . . 31 12 . . Total Orders . | . . . . . . Ally Attacks 21 | . . 11 10 . . Total Damage 292 | . . 127 165 . . Kills 4 | . . 3 1 . . Allies Corrupted . | . . . . . . Allies Melted . | . . . . . . Intel | -11 -10 -10 -10 -8 -8 ------- Run | Yrd Mat Min Sub Mat Gar Robot Analysis Total 2 | . 2 . . . . Derelict Logs Recovered 4 | . . 1 3 . . Drone Launches . | . . . . . . Drone Recoveries . | . . . . . . Exploration | -11 -10 -10 -10 -8 -8 ------------- Run | Yrd Mat Min Sub Mat Gar Turns Passed 5803 | 120 722 793 3192 736 240 Spaces Moved 4154 | 55 845 639 1930 530 155 Core 4 | 2 . . 2 . . Treads 946 | 53 25 . 868 . . Legs 1636 | . . . 951 530 155 Wheels 77 | . . . 77 . . Hover . | . . . . . . Flight 1491 | . 820 639 32 . . Fastest Speed 37 | 50 37 37 37 90 90 Average Speed 87 | 156 40 37 121 90 90 Slowest Speed 200 | 160 200 37 200 90 90 Overloaded Moves . | . . . . . . Propulsion Burnouts . | . . . . . . Robots Hopped 30 | . 19 11 . . . Cave-ins Triggered . | . . . . . . Exploration Rate (%) 60 | 6 98 97 95 40 26 Regions Visited 5 Branch Regions 2 Pre-discovered Areas 3 | . 2 . 1 . . Known Exits Taken 4 | . 1 1 1 1 . Unknown Exits Taken 1 | 1 . . . . . Scrap Searched 19 | . . 1 18 . . Spaces Dug 12 | . . . 10 2 . Terrain Destroyed 60 | . . . 36 19 5 Melee 4 | . . . 2 2 . Projectile . | . . . . . . AOE 56 | . . . 34 17 5 Terrain Rammed . | . . . . . . Walls Destroyed . | . . . . . . Machines Disabled . | . . . . . . Actions | -11 -10 -10 -10 -8 -8 --------- Run | Yrd Mat Min Sub Mat Gar Total 5809 | 70 1062 1142 2597 722 216 Wait 1144 | . 134 469 438 92 11 Move 4090 | 54 807 616 1929 529 155 Hop 29 | . 18 11 . . . Pick Up 19 | . 4 2 6 5 2 Fast Attach 35 | 7 4 . 14 7 3 Attach 3 | . . . 1 2 . Detach 1 | . . . 1 . . Swap 29 | . 3 . 14 6 6 Drop 41 | . 10 2 17 7 5 Fire 213 | 9 76 21 73 3 31 Melee 100 | . . . 51 47 2 Ram . | . . . . . . Kick . | . . . . . . Crush . | . . . . . . Escape Stasis . | . . . . . . Rewire . | . . . . . . Trap 1 | . . . 1 . . Miscellaneous 104 | . 6 21 52 24 1 Route ------- -11/Scrapyard -10/Materials (discovered 6 exits: *Mat x3 / *Min x2 / Sub) -10/Mines (discovered 4 exits: *Mat x2 / *Exi / *Sub) -10/Subcaves (discovered 3 exits: *Mat x2 / [*Rec]) -8/Materials (discovered 3 exits: *Fac x2 / Gar) -8/Garrison History --------- Turn | Location | Event 1 | -11/Scrapyard | Upgraded with Propulsion slot (x1) 1 | -11/Scrapyard | Upgraded with Utility slot (x1) 1 | -11/Scrapyard | Upgraded with Weapon slot (x1) 17 | -11/Scrapyard | Discovered new exit (range 16) 121 | -11/Scrapyard | Entered Materials 305 | -10/Materials | Build established: Mutant 434 | -10/Materials | Discovered new exit (range 11) 508 | -10/Materials | Core integrity fell below 50% 541 | -10/Materials | Discovered new exit (range 17) 552 | -10/Materials | Reached level 2 561 | -10/Materials | Upgraded with Utility slot (x1) 592 | -10/Materials | Discovered new exit (range 10) 731 | -10/Materials | Discovered new exit (range 16) 766 | -10/Materials | Discovered new exit (range 11) 775 | -10/Materials | Discovered new exit (range 14) 843 | -10/Materials | Identified exit to Mines 843 | -10/Materials | Entered Mines 845 | -10/Mines | Reached level 3 848 | -10/Mines | Learned 2 Materials zone layouts 853 | -10/Mines | Discovered new exit (range 14) 867 | -10/Mines | Core integrity fell below 20% 877 | -10/Mines | Identified exit to Materials 883 | -10/Mines | Discovered exit to Materials (range 8) 936 | -10/Mines | A weapon hastily lodged in a ceiling crevice suddenly fell to the ground 1109 | -10/Mines | Discovered new exit (range 9) 1276 | -10/Mines | Discovered new exit (range 5) 1276 | -10/Mines | Deemed a non-threat by the Exiles lab entrance 1277 | -10/Mines | Identified exit to Exiles 1619 | -10/Mines | Identified exit to Subcaves 1636 | -10/Mines | Entered Subcaves 1636 | -10/Subcaves | Accompanied by 1 ally 1638 | -10/Subcaves | Reached level 4 1638 | -10/Subcaves | Learned location of Zion (-7) 1800 | -10/Subcaves | Disturbed a concealed Subdweller 1925 | -10/Subcaves | Ambushed by angry Subdweller bent on revenge 2029 | -10/Subcaves | A swath of the cavern ceiling suddenly collapsed 2029 | -10/Subcaves | Discovered new exit (range 17) 2053 | -10/Subcaves | Identified exit to Materials 2115 | -10/Subcaves | Build established: Derelict-Mutant 2213 | -10/Subcaves | Shifting Twisted Machinery released Sub. Shrapnel Launcher 2695 | -10/Subcaves | Learned 4 Materials zone layouts 2763 | -10/Subcaves | Reached level 5 2765 | -10/Subcaves | Discovered new exit (range 14) 3099 | -10/Subcaves | Shifting Twisted Machinery released Flamer 3354 | -10/Subcaves | Shifting Twisted Machinery released Mak. Spear 3780 | -10/Subcaves | Visited 4L-MR0's lab 3795 | -10/Subcaves | Upgraded with Propulsion slot (x1) 3800 | -10/Subcaves | Found Arachnoskeleton 3802 | -10/Subcaves | Attached Arachnoskeleton, gained temporary slots: Propulsion x3 3937 | -10/Subcaves | Upgraded with Utility slot (x1) 3937 | -10/Subcaves | Upgraded with Power slot (x1) 4229 | -10/Subcaves | Disturbed a concealed Subdweller 4660 | -10/Subcaves | Discovered exit to Materials (range 9) 4664 | -10/Subcaves | Visited Clippyterm 4687 | -10/Subcaves | Ambushed by Subdwellers from Twisted Machinery 4828 | -10/Subcaves | Entered Materials 4829 | -8/Materials | Identified exit to Factory 4829 | -8/Materials | Core integrity fell below 50% 4830 | -8/Materials | Reached level 6 4992 | -8/Materials | Upgraded with Utility slot (x1) 5007 | -8/Materials | Core integrity fell below 20% 5121 | -8/Materials | Reached level 7 5253 | -8/Materials | Upgraded with Utility slot (x1) 5462 | -8/Materials | Build established: Hacker-Gladiator 5463 | -8/Materials | Garrison activated, responded to threat 5488 | -8/Materials | Identified exit to Garrison 5564 | -8/Materials | Entered Garrison 5566 | -8/Garrison | Reached level 8 5570 | -8/Garrison | Triggered checkpoint 5598 | -8/Garrison | Triggered checkpoint 5650 | -8/Garrison | Garrison Relay disabled 5776 | -8/Garrison | Triggered checkpoint 5804 | -8/Garrison | Destroyed by G-50 Soldier with Heavy Laser Last Messages --------------- 05663_ Acquired Disruptor Cannon. 05667_ Dropped Lgt. Nuclear Core. 05667_ Acquired Mic. Fission Core. 05670_ Acquired Imp. Transmission Jammer. 05679_ Dropped Lgt. Deuterium Engine. 05680_ Acquired Neutrino Core. 05686_ Dropped Imp. Terrain Scanner. 05686_ Acquired Adv. Trap Extractor. 05691_ Triggered Alarm Trap. 05691_ Imp. Transmission Jammer jams signal. 05708_ Acquired 51 matter. 05770_ Upgraded: Heat Dissipation (+6) 05793_ G-47 Trooper destroyed. 05796_ Acquired 9 matter. 05800_ Acquired 10 matter. 05801_ Acquired 13 matter. 05802_ G-47 Trooper destroyed. 05803_ Acquired 13 matter. 05804_ Destroyed Lgt. Nuclear Core. 05804_ G-47 Trooper destroyed. Map ----- +----------------------------------------------------+ | ??????????????# #??????????????????????????????? | | ??????????????# #????????????????+?????????????? | | ??????????????# #??????????????????????????????? | | ??????????????# #??????????????????????????+???? | | ??????????????# #??????????????????????????????? | | ??????????????# #??????????????????????????????+ | | ??????????????# #??????????????????????????????? | | ??????????????# #??????????????????????????????? | | ??????????????# #??????????????????????????????? | | ??????????????# #??????????????????????????????? | | ??????????????# #??????????????????????????????? | | ??????????????# #??????????????????????????????+ | | ??????###?????# #??????????????????????????????? | | #######T####### ############???????????????????? | | ! + #???????????????????? | | * [ + #???????????????????? | | ##! ##### %%## #### #### #???????????????????? | | #" """#??# ## #??# #??# #???????????????????? | | #######??##"### #??# #??# #?????????????????+?? | | ??????????# #?# #??# #??# #???????????????????? | | ??????????# #?# ^ #??# #??# #???????????????????? | | ??????????# #?# #??# #??# #???????????????????? | | ??????????# ### ####;#### +##""""###+##????????? | | ??????##### ; ##???????? | | ??????# ###### ?????? | | ??????# ; *@! ?????? | | ??????################## %g ## ###??????+ | | ???????????????????????###g # #?????????????? | | ????????????????????????? % ??????????? | | ????????????????????????? = "????????? | | ???????????????????????# "????????? | | ???????????????????????? "????????? | | ???????????????????????### ## ## #????????? | | ?????????????????+???????# #? #?? ?????????? | | ????????????????????????? ? ????????????? | | ????????????????????????? ?? ???????????? | | ???????????????????????+?# ? ????+?????? | | ?????????????????????????## ##??""###+??????????? | | ??????????????????????????? #???????????????????? | | ??????????????????+???????? #??+????????????????? | | ??????????????????????????+ #???????????????????? | | ??????????????????????????? #?????????????????+?? | | ?????+???+????????????????? ????????????????????? | | ????+??????????????????+?????????????????????????? | | ?????????????????????????????+???????????????????? | | ?????????????????????????????????????????????????? | | ???????????????????????????????????????????+?????? | | ?????????????????????????????????????????????????? | | ?????????????????????????????????????????????????? | | ?????????????????????????????????????????????????? | +----------------------------------------------------+ Best States ------------- Heat Dissipation 43 Energy Generation 29 Energy Capacity 365 Matter Stores 300 Matter Capacity 300 Sight Range 22 Terrain Scan Range 16 Terrain Scan Density 110 Jamming Range 14 Armor Coverage 950 Resistance: KI 20 Evasion (%) 62 Melee Accuracy 5 Recoil Reduction 2 Offensive Hacking 16 Defensive Hacking 16 Item Schematics ----------------- Mak. Hacking Suite | -8/Materials | Scanalyzed Multitool | -8/Materials | Scanalyzed Mak. Laser | -8/Materials | Scanalyzed Powered Armor | -8/Garrison | Hacked Robot Schematics ------------------ None Fabricated ------------ Nothing Alien Tech Used ----------------- None Achievements -------------- None Challenges ------------ None RPGLIKE | -11 -10 -10 -10 -8 -8 --------- Run | Yrd Mat Min Sub Mat Gar Levels Raised 7 | . 1 1 2 2 1 XP Earned 14676 | 3000 2660 1706 1922 3938 1450 XP Spent 12060 | 2800 900 900 4150 3220 90 Upgrades 23 | 9 2 2 5 4 1 Power Slot 1 | . . . 1 . . Propulsion Slot 2 | 1 . . 1 . . Utility Slot 5 | 1 1 . 1 2 . Weapon Slot 1 | 1 . . . . . Heat Dissipation 3 | . . . . 2 1 Mass Support 1 | . 1 . . . . Inventory Capacity 4 | 2 . . 2 . . Sight Range 1 | 1 . . . . . Terrain Scan Density 1 | 1 . . . . . Ranged Accuracy 2 | . . 2 . . . Hack Attack % 1 | 1 . . . . . Hack Defense % 1 | 1 . . . . . Protomatter Created 756 | . 145 116 300 166 29 Integrity Restored 2082 | . 141 468 975 498 . Core 2082 | . 141 468 975 498 . Protomatter Decayed 153 | . . 42 111 . . Game ------ Seed SmartbombEnhancedArchive Manual? 0 Play Time 00:54:01 Cumulative 601.1 hours Start 2024.03.14 @ 20:18:37 End 2024.03.14 @ 21:11:46 Sessions 1 Manual Loads 0 Difficulty Rogue Special Mode Winter2019/RPGLIKE Game No. 231 Rogue 209 Adventurer 3 Explorer 19 Win Type - Total 13 Types 8/2/1/1/0/1/0/0/0 Lore% 88 Gallery% 95 Achievement% 82 Wizard Run 0 Options --------- Layout 2 ASCII 0 Keyboard 0 Movement Numpad Keybinds 0 Fullscreen 2 Font 24/Smallcaps Map View 50x44 Zoom Use 0% Tactical HUD 1 Map Filters NONE Filters NONE Steam X RUN: 4bbdbe18-17a2-4a9a-a60b-19ebde32aa6b